Cogmind - Beta 9.6 @@@ ROGUE MODE // 2020.06.26 @ 05:20:11 Player: Demise Result: Destroyed by G-34 Mercenary with Small Laser Performance ------------- Evolutions (1) 500 Regions Visited (3) 600 Robots Destroyed (29) 145 Value Destroyed (726) 726 Prototype IDs (1) 20 Alien Tech Used (0) 0 Bonus (0) 0 TOTAL SCORE: 1991 Bonus ------- None Cogmind --------- Core Integrity 0/400 Matter 300/300 Energy 125/125 System Corruption 0% Temperature Cool (6) Movement Rolling (140) Ox4 Location -9/Materials Parts ------- > --- POWER (1) -------- Light Ion Engine > --- PROPULSION (2) --- Light Treads Compact Wheel > --- UTILITY (4) ------ Heat Sink Improved Heat Sink High-capacity Storage Unit High-capacity Storage Unit > --- WEAPON (2) ------- Heavy Assault Rifle > --- INVENTORY (20) --- Ion Engine Light Ion Engine Light Treads Wheel Improved Flight Unit Improved Flight Unit Heat Sink Large Storage Unit Small Battery (100) High-capacity Matter Pod (200) Structural Scanner Improved Terrain Scanner Light Armor Plating Heavy Hammer Peak State ------------ > --- POWER ------------ Light Ion Engine > --- PROPULSION ------- Light Treads Compact Wheel > --- UTILITY ---------- Heat Sink Improved Heat Sink High-capacity Storage Unit High-capacity Storage Unit > --- WEAPON ----------- Beam Rifle Heavy Assault Rifle > --- INVENTORY -------- Ion Engine Light Ion Engine Light Treads Wheel Improved Flight Unit Improved Flight Unit Heat Sink Large Storage Unit Small Battery High-capacity Matter Pod Structural Scanner Improved Terrain Scanner Light Armor Plating Heavy Hammer [Rating: 15] Favorites ----------- Power Ion Engine Engine Ion Engine Propulsion Wheel Treads Light Treads Wheel Wheel Utility High-capacity Storage Unit Device Improved Terrain Scanner Storage High-capacity Storage Unit Processor Seismic Analyzer Weapon Light Assault Rifle Energy Gun Small Laser Ballistic Gun Light Assault Rifle Launcher Grenade Launcher Special Weapon Mining Laser Build | -11 -10 -10 -9 ------- Run | Scr Mat Min Mat Slots Evolved 2 | . . . 2 Power . | . . . . Propulsion . | . . . . Utility 2 | . . . 2 Weapon . | . . . . Parts Attached 34 | 8 10 2 14 Power 3 | 1 1 . 1 Engine 3 | 1 1 . 1 Core . | . . . . Reactor . | . . . . Propulsion 9 | 2 2 1 4 Treads 2 | . 1 . 1 Leg . | . . . . Wheel 7 | 2 1 1 3 Hover . | . . . . Flight . | . . . . Utility 8 | 2 3 . 3 Device 4 | 1 . . 3 Storage 3 | . 3 . . Processor 1 | 1 . . . Hackware . | . . . . Protection . | . . . . Artifact . | . . . . Weapon 14 | 3 4 1 6 Energy Gun 6 | 3 2 . 1 Energy Cannon . | . . . . Ballistic Gun 5 | . 1 1 3 Ballistic Cannon . | . . . . Launcher 1 | . . . 1 Special Weapon 2 | . 1 . 1 Impact Weapon . | . . . . Slashing Weapon . | . . . . Piercing Weapon . | . . . . Special Melee Weapon . | . . . . Unidentified Prototypes . | . . . . Parts Lost 18 | . 6 1 11 Power 2 | . 1 . 1 Propulsion 6 | . 3 . 3 Utility . | . . . . Weapon 10 | . 2 1 7 Highest Loss Streak 4 | . 3 1 4 Average Slot Usage (%) 82 | . 89 98 72 Engine 11 | . 14 14 6 Treads 7 | . 4 14 9 Wheel 14 | . 18 14 10 Device 8 | . 10 . 6 Storage 18 | . 15 28 22 Energy Gun 10 | . 14 14 4 Ballistic Gun 9 | . 8 12 9 Naked Turns . | . . . . Heaviest Build 75 | 7 71 71 75 Greatest Support 20 | 20 20 16 20 Greatest Overweight (x) 5 | . 3 4 5 Average Overweight (x) 2 | . 1 4 4 Largest Inventory Capacity 20 | 4 20 20 20 Average Capacity 14 | 4 12 20 20 Most Carried 17 | 4 13 14 17 Average Carried 10 | 3 9 12 14 Final Capacity 20 | 4 20 20 20 Final Carried 14 | 4 13 14 14 Class Distribution -------------------- 45% | Mutant 44% | Hauler-Mutant 10% | Scavenger-Mutant Dominant Class ---------------- Mutant | -10/Materials Hauler-Mutant | -10/Mines Hauler-Mutant | -9/Materials Resources | -11 -10 -10 -9 ----------- Run | Scr Mat Min Mat Matter Collected 826 | 280 290 29 227 Remotely . | . . . . Salvage Created 881 | 136 420 . 325 Parts 64 | 14 22 . 28 Haulers Intercepted 1 | . 1 . . Recyclers Shooed . | . . . . Parts Field Recycled . | . . . . Retrieved Matter . | . . . . Parts Self-Destructed . | . . . . Prevented . | . . . . Kills | -11 -10 -10 -9 ------- Run | Scr Mat Min Mat Combat Hostiles Destroyed 21 | 1 8 . 12 Melee 2 | . . . 2 Guns 14 | 1 8 . 5 AOE 5 | . . . 5 Classes Destroyed 7 | 3 2 . 2 Worker 1 | 1 . . . Builder 2 | . 1 . 1 Tunneler 4 | 4 . . . Hauler 1 | . 1 . . Swarmer 5 | . . . 5 Grunt 11 | 1 8 . 2 Sentry 5 | . . . 5 Best Kill Streak 5 | 5 3 . 3 Combat Bots Only 3 | 1 2 . 3 Max Kills in Single Turn 2 | 1 1 . 2 Gunslinging . | . . . . Exploded 2 | . . . 2 Melee 1 | . . . 1 Uniques/NPCs Destroyed 1 | . . 1 . YI-UF0 (-10/Mines) Combat | -11 -10 -10 -9 -------- Run | Scr Mat Min Mat Damage Taken 1837 | 12 511 51 1263 Core 495 | . 95 . 400 Absorbed by Shields . | . . . . Core Remaining (%) 81 | 100 . 62 . Volleys Fired 125 | 9 63 1 52 Largest 2 | 2 2 1 2 Hottest 100 | 80 100 40 100 Shots Fired 162 | 18 77 1 66 Gun 143 | 18 73 1 51 Cannon . | . . . . Launcher 11 | . . . 11 Special 8 | . 4 . 4 Kinetic 80 | . 34 . 46 Thermal 71 | 18 43 1 9 Explosive 11 | . . . 11 Electromagnetic . | . . . . Robot Hit Streak 16 | 6 13 . 16 Robot Miss Streak 5 | 1 4 5 3 Penetration Max . | . . . . Secondary Targets . | . . . . Shots Hit Robots 109 | 14 48 . 47 Core Hits 64 | 7 21 . 36 Critical Hits . | . . . . Critical Kills . | . . . . Critical Parts Destroyed . | . . . . Melee Attacks . | . . . . Impact . | . . . . Slashing . | . . . . Piercing . | . . . . Sneak Attacks . | . . . . Combat Hostiles . | . . . . Follow-up Attacks . | . . . . Damage Inflicted 1315 | 154 474 10 677 Guns 977 | 154 474 10 339 Cannons . | . . . . Explosions 284 | . . . 284 Melee . | . . . . Ramming 30 | . . . 30 Kinetic 516 | . 199 . 317 Thermal 485 | 154 275 10 46 Explosive 284 | . . . 284 Electromagnetic . | . . . . Impact . | . . . . Slashing . | . . . . Piercing . | . . . . Highest Corruption . | . . . . Average Corruption . | . . . . Corruption Purged . | . . . . Overload Shots . | . . . . Overflow Damage 5 | . . . 5 Projectiles . | . . . . Explosions 5 | . . . 5 Melee . | . . . . Knockbacks . | . . . . Impact . | . . . . Kinetic . | . . . . Secondary . | . . . . Self-Inflicted Damage 73 | . . . 73 Shots 2 | . . . 2 Rammed 7 | . . . 7 Targets Rammed 7 | . . . 7 Kicked . | . . . . Crushed . | . . . . Highest Temperature 228 | 146 228 . 14 Average Temperature 62 | 62 69 . 5 Received Heat Transfer 483 | 6 222 . 255 Siege Activations . | . . . . Robots Corrupted . | . . . . Combat Hostiles . | . . . . Parts Fried . | . . . . Impact Corruptions . | . . . . Robots Melted . | . . . . Combat Hostiles . | . . . . Parts Melted 5 | . 4 . 1 Heat Transferred 1230 | 350 755 25 100 Parts Sabotaged . | . . . . Parts Stolen . | . . . . Parts Stripped . | . . . . Power Chain Reactions . | . . . . Missiles Intercepted . | . . . . Alert | -11 -10 -10 -9 ------- Run | Scr Mat Min Mat Peak Influence 262 | 45 226 36 262 Average Influence 90 | 24 94 27 111 Maximum Alert Level 1 | . 1 . 1 Low Security (%) 96 | 100 98 100 92 Level 1 3 | . 1 . 7 Level 2 . | . . . . Level 3 . | . . . . Level 4 . | . . . . Level 5 . | . . . . High Security . | . . . . Max Security . | . . . . Squads Dispatched 7 | . 5 . 2 Investigation 2 | . 2 . . Extermination . | . . . . Reinforcement 5 | . 3 . 2 Assault . | . . . . Garrison . | . . . . Intercept . | . . . . Construction Impeded 1 | . . . 1 Haulers Reinforced . | . . . . Stealth | -11 -10 -10 -9 --------- Run | Scr Mat Min Mat Distress Signals 2 | . 1 . 1 Communications Jammed . | . . . . Distress Signals . | . . . . Times Spotted 46 | 1 25 1 19 Peak Tracking Total 4 | . 4 1 4 Tactical Retreats 2 | . 1 . 1 Traps | -11 -10 -10 -9 ------- Run | Scr Mat Min Mat Traps Triggered 3 | . 3 . . Indirectly . | . . . . Trap Hack Attempts . | . . . . Triggered . | . . . . Disarmed . | . . . . Reprogrammed . | . . . . Reused . | . . . . Traps Extracted . | . . . . Installed . | . . . . Triggered . | . . . . Machines | -11 -10 -10 -9 ---------- Run | Scr Mat Min Mat Machines Disabled 1 | . . . 1 Max in Single Turn 1 | . . . 1 Machines Sabotaged . | . . . . Garrisons Compromised . | . . . . Overloaded Fab Kills . | . . . . Fab Network Shutdowns . | . . . . Hacking | -11 -10 -10 -9 --------- Run | Scr Mat Min Mat Machines Accessed 7 | . 5 . 2 Terminals 6 | . 5 . 1 Fabricators . | . . . . Repair Stations . | . . . . Recycling Units . | . . . . Scanalyzers 1 | . . . 1 Garrison Access . | . . . . Total Hacks 14 | . 12 . 2 Successful 5 | . 3 . 2 Failed 9 | . 9 . . Catastrophic 2 | . 2 . . Database Lockouts . | . . . . Manual 6 | . 6 . . Terminals 13 | . 12 . 1 Fabricators . | . . . . Repair Stations . | . . . . Recycling Units . | . . . . Scanalyzers 1 | . . . 1 Garrison Access . | . . . . Terminal Hacks 4 | . 3 . 1 Record 2 | . 2 . . Unreport Threat 1 | . . . 1 Locate Traps 1 | . 1 . . Fabricator Hacks . | . . . . Repair Station Hacks . | . . . . Recycling Unit Hacks . | . . . . Scanalyzer 1 | . . . 1 Insert Component 1 | . . . 1 Garrison Access Hacks . | . . . . Unauthorized Hacks . | . . . . Terminals . | . . . . Fabricators . | . . . . Repair Stations . | . . . . Recycling Units . | . . . . Scanalyzers . | . . . . Garrison Access . | . . . . Data Cores Recovered . | . . . . Used . | . . . . Hacking Detections 6 | . 5 . 1 Full Trace Events . | . . . . Feedback Events . | . . . . Feedback Blocked . | . . . . Robot Schematics Acquired . | . . . . Robots Built . | . . . . Matter . | . . . . Time . | . . . . Total Robot Build Rating . | . . . . Part Schematics Acquired . | . . . . Parts Built . | . . . . Matter . | . . . . Time . | . . . . Total Part Build Rating . | . . . . Parts Repaired . | . . . . Time . | . . . . Parts Recycled . | . . . . Recycled Matter . | . . . . Retrieved Matter . | . . . . Retrieved Components . | . . . . Parts Scanalyzed . | . . . . Part Schematics Acquired . | . . . . Parts Damaged . | . . . . Bothacking | -11 -10 -10 -9 ------------ Run | Scr Mat Min Mat Used RIF Installer . | . . . . Robots Hacked . | . . . . Non-combat . | . . . . Combat . | . . . . Robot Hacks Applied . | . . . . Relay Couplers Released . | . . . . Robots Rewired . | . . . . Allies Hacked . | . . . . Hacks Repelled . | . . . . Allies | -11 -10 -10 -9 -------- Run | Scr Mat Min Mat Total Allies 3 | . . 3 . Largest Group 3 | . . 3 2 Highest-Rated Group 40 | . . 40 32 Highest-Rated Ally 16 | . . 16 16 Total Orders . | . . . . Ally Attacks 16 | . . 5 11 Total Damage 185 | . . 61 124 Kills 1 | . . 1 . Allies Corrupted . | . . . . Allies Melted . | . . . . Intel | -11 -10 -10 -9 ------- Run | Scr Mat Min Mat Robot Analysis Total . | . . . . Derelict Logs Recovered . | . . . . Drone Launches . | . . . . Drone Recoveries . | . . . . Exploration | -11 -10 -10 -9 ------------- Run | Scr Mat Min Mat Turns Passed 1628 | 146 773 109 600 Spaces Moved 976 | 129 494 74 279 Core 15 | 15 . . . Treads 145 | . 105 . 40 Legs . | . . . . Wheels 816 | 114 389 74 239 Hover . | . . . . Flight . | . . . . Fastest Speed 50 | 50 80 140 140 Average Speed 122 | 76 114 140 151 Slowest Speed 220 | 80 220 140 220 Overloaded Moves . | . . . . Propulsion Burnouts . | . . . . Robots Hopped . | . . . . Cave-ins Triggered . | . . . . Exploration Rate (%) 37 | 6 90 23 30 Regions Visited 3 Branch Regions 1 Pre-discovered Areas . | . . . . Known Exits Taken . | . . . . Unknown Exits Taken 3 | 1 1 1 . Scrap Searched . | . . . . Spaces Dug 4 | . 4 . . Terrain Destroyed 46 | . 4 . 42 Melee . | . . . . Projectile 7 | . 4 . 3 AOE 39 | . . . 39 Actions | -11 -10 -10 -9 --------- Run | Scr Mat Min Mat Total 1239 | 159 621 78 381 Wait 66 | . 42 . 24 Move 973 | 128 493 73 279 Hop . | . . . . Pick Up 27 | 9 11 2 5 Fast Attach 17 | 7 4 1 5 Attach 11 | 1 2 1 7 Detach 1 | . 1 . . Swap 6 | . 4 . 2 Drop 6 | 5 1 . . Fire 125 | 9 63 1 52 Melee . | . . . . Ram 2 | . . . 2 Kick . | . . . . Crush 5 | . . . 5 Escape Stasis . | . . . . Rewire . | . . . . Trap . | . . . . Miscellaneous . | . . . . Route ------- -11/Scrapyard -10/Materials (discovered 4 exits: *Mat x2 / [*Min x2]) -10/Mines -9/Materials (discovered 1 exit: [*Mat]) History --------- Turn | Location | Event 2 | -11/Scrapyard | Met Revision 17 60 | -11/Scrapyard | Discovered new exit (range 8) 147 | -11/Scrapyard | Entered Materials 187 | -10/Materials | Discovered new exit (range 16) 302 | -10/Materials | Build established: Mutant 419 | -10/Materials | Lost 3 parts (1p1n1w) 533 | -10/Materials | Discovered new exit (range 3) 627 | -10/Materials | Discovered new exit (range 5) 882 | -10/Materials | Discovered new exit (range 16) 920 | -10/Materials | Entered Mines 948 | -10/Mines | Assisted by bots powering up and referring to "LRC-V3" 993 | -10/Mines | Discovered new exit (range 13) 1000 | -10/Mines | Allies destroyed YI-UF0 1029 | -10/Mines | Entered Materials 1029 | -9/Materials | Accompanied by 2 allies 1029 | -9/Materials | Evolved 2 slots: Utility x2 1047 | -9/Materials | Build established: Hauler-Mutant 1161 | -9/Materials | Lost 3 parts (1p2w) 1431 | -9/Materials | Core integrity fell below 50% 1511 | -9/Materials | Lost 4 parts (2n2w) 1587 | -9/Materials | Core integrity fell below 20% 1615 | -9/Materials | Discovered new exit (range 15) 1629 | -9/Materials | Destroyed by G-34 Mercenary with Small Laser Last Messages --------------- 01435_ Lgt. Assault Rifle destroyed. 01454_ Arm. Wheel destroyed. 01466_ Wheel destroyed. 01466_ Y-45 Defender destroyed. 01480_ Lgt. Assault Rifle destroyed. 01483_ Slammed into Y-45 Defender. 01485_ Y-45 Defender destroyed. 01486_ Acquired 43 matter. 01489_ Acquired Beam Rifle. 01492_ Acquired Hvy. Assault Rifle. 01492_ U-05 Engineer builds a Door. 01493_ Acquired 20 matter. 01493_ R-06 Scavenger collects Heat Sink. 01496_ Acquired Lgt. Treads. 01498_ R-06 Scavenger collects Lgt. Treads. 01501_ R-06 Scavenger collects Heat Sink. 01501_ Acquired Lgt. Armor Plating. 01522_ Acquired Hvy. Hammer. 01613_ Beam Rifle destroyed. 01615_ EXIT=FOUND Map ----- +----------------------------------------------------+ | | | | | | | | | ??????????????????????????#########?#? | | ?????????????????????????# ?? | | ?????????????????????????# """ """ #?? | | ??????????????????????#### """ """ #?? | | ??????????????????????? # """ """ #?? | | ???????????????????????? / #?? | | ?????????????????????????# #?? | | ???????????????????????? # #?? | | ???????????????????????? # #?? | | ???????????????????????# ####+##+###?? | | ???????????????????????# ???# #???? | | ???????????????????????# ???# #???? | | ???????????????????????# ???# #???? | | ???????????????????????# ???# #???? | | ???????????????????????# #### #???? | | ???????????????????????# ## #???? | | ???????????????????????# < ## #???? | | ???????????????????????# ## #???? | | ?????????????###???????# ## #???? | | ?????????????#!!/??????# ## #???? | | ?????????????#!!//?????# ## #???? | | ?????????????# ???## @ ## ####???? | | ??????????#### ### l # #??????? | | ????????? # #??????? | | ????????? # #??????? | | ????????? [ # #??????? | | ???????????##### ######g # #??????? | | ??????????????????????# ##### #??????? | | ??????????????????????#g#???# ##+#???? | | ??????????????????????# #???# #???? | | ??????????????????????# #???# #???? | | ??????????????????????# ##### ##+#???? | | ???????????????#??????# #???? # | | ???????????????# ?????# #?? # | | ???????????????# ###?## # ! # | | ???????????????# / # | | ???????????????# ######## # # | | ????? ?????????# ??######+#######? | | ????# ????????# ??# #???? | | ????# ???????# ??# #???? | | ??### ##+##### ### #???? | | ?? # #???? | | ?? + #???? | | ??? # #???? | | ????# ######### # #???? | | ????# #??# # [ #???? | +----------------------------------------------------+ Best States ------------- Heat Dissipation 52 Energy Generation 10 Energy Capacity 250 Matter Stores 300 Matter Capacity 300 Sight Range 16 Terrain Scan Range 16 Terrain Scan Density 60 Evasion (%) 50 Recoil Reduction 1 Item Schematics ----------------- None Robot Schematics ------------------ None Fabricated ------------ Nothing Alien Tech Used ----------------- None Achievements -------------- None Challenges ------------ None Game ------ Seed SmartbombSegregatorHumpback Manual? 0 Play Time 00:18:58 Cumulative 3.2 hours Start 2020.06.26 @ 05:05:11 End 2020.06.26 @ 05:20:11 Sessions 1 Manual Loads 0 Difficulty Rogue Special Mode None Game No. 1 Rogue 1 Adventurer 0 Explorer 0 Win Type - Total 0 Types 0/0/0/0/0/0/0 Lore% 0 Gallery% 2 Achievement% 46 Wizard Run 0 Options --------- ASCII 0 Keyboard 1 Movement Numpad Keybinds 0 Fullscreen 1 Font 12/Terminus Map View 83x54 Tactical HUD 1 Map Filters NONE Filters NONE Steam 1 RUN: 432aaab8-384e-4eed-a13e-7966e47e5c8d